[Event "*** Titled Tuesday 3|2 Blitz"]
[Site "Chess.com"]
[Date "2017.05.02"]
[Round "3"]
[White "Rating-Schmating"]
[Black "korason34"]
[Result "0-1"]
[WhiteElo "2204"]
[BlackElo "2311"]
[TimeControl "180+2"]
[EndTime "13:38:21 PDT"]
[Termination "korason34 won by checkmate"]

1. e4 {[%clk 0:03:01.9]} 1... e5 {[%clk 0:03:00.2]} 2. Nf3 {[%clk 0:03:02.9]}
2... Nc6 {[%clk 0:03:00.8]} 3. d4 {[%clk 0:03:04.1]} 3... exd4 {[%clk
0:03:01.2]} 4. Nxd4 {[%clk 0:03:05.3]} 4... Bc5 {[%clk 0:03:02.7]} 5. Nxc6
{[%clk 0:03:06.2]} 5... bxc6 {[%clk 0:03:01.1]} 6. Bc4 {[%clk 0:03:06.3]} 6...
Nf6 {[%clk 0:02:58.8]} 7. Nc3 {[%clk 0:03:06.7]} 7... O-O {[%clk 0:02:56.9]} 8.
Bg5 {[%clk 0:03:01.5]} 8... d6 {[%clk 0:02:53.2]} 9. O-O {[%clk 0:03:01.1]} 9...
h6 {[%clk 0:02:51.1]} 10. Bh4 {[%clk 0:02:58.9]} 10... Qe7 {[%clk 0:02:40.2]}
11. Qd3 {[%clk 0:02:56]} 11... Rb8 {[%clk 0:02:37.7]} 12. Bb3 {[%clk 0:02:53.6]}
12... Be6 {[%clk 0:02:34.3]} 13. Rae1 {[%clk 0:02:50.9]} 13... Bxb3 {[%clk
0:02:31.8]} 14. axb3 {[%clk 0:02:51.4]} 14... Qe5 {[%clk 0:02:33.3]} 15. Qg3
{[%clk 0:02:47.2]} 15... Qxg3 {[%clk 0:02:14.1]} 16. Bxg3 {[%clk 0:02:47.6]}
16... Nh5 {[%clk 0:02:12.9]} 17. Na4 {[%clk 0:02:43.7]} 17... Nxg3 {[%clk
0:02:12.6]} 18. hxg3 {[%clk 0:02:45.6]} 18... Bd4 {[%clk 0:02:13.9]} 19. Rd1
{[%clk 0:02:41.6]} 19... c5 {[%clk 0:02:15]} 20. Nc3 {[%clk 0:02:37.1]} 20...
Rfe8 {[%clk 0:02:13.5]} 21. Rfe1 {[%clk 0:02:37.2]} 21... Re5 {[%clk 0:02:06.2]}
22. Kf1 {[%clk 0:02:34.1]} 22... Rbe8 {[%clk 0:02:04.6]} 23. f3 {[%clk
0:02:26.7]} 23... Rh5 {[%clk 0:02:05.2]} 24. Rd2 {[%clk 0:02:13.2]} 24... f5
{[%clk 0:01:56.2]} 25. Nb5 {[%clk 0:02:01.9]} 25... Rh1+ {[%clk 0:01:46.9]} 26.
Ke2 {[%clk 0:02:01.6]} 26... Rxe1+ {[%clk 0:01:47.9]} 27. Kxe1 {[%clk
0:02:02.2]} 27... fxe4 {[%clk 0:01:49.4]} 28. Nxd4 {[%clk 0:02:01.7]} 28...
exf3+ {[%clk 0:01:43.3]} 29. Kf2 {[%clk 0:02:01.7]} 29... cxd4 {[%clk 0:01:43]}
30. gxf3 {[%clk 0:01:48.3]} 30... c5 {[%clk 0:01:42.6]} 31. Rd1 {[%clk
0:01:42.5]} 31... Kf7 {[%clk 0:01:42.4]} 32. Ra1 {[%clk 0:01:43.3]} 32... Re7
{[%clk 0:01:42.9]} 33. Ra6 {[%clk 0:01:42.5]} 33... Ke6 {[%clk 0:01:43.5]} 34.
Ke2 {[%clk 0:01:42.2]} 34... Kd5+ {[%clk 0:01:43.3]} 35. Kd2 {[%clk 0:01:41.1]}
35... g5 {[%clk 0:01:44.9]} 36. c4+ {[%clk 0:01:40.7]} 36... dxc3+ {[%clk
0:01:32.4]} 37. bxc3 {[%clk 0:01:41.2]} 37... Rb7 {[%clk 0:01:33.7]} 38. Kd3
{[%clk 0:01:37.6]} 38... h5 {[%clk 0:01:30.2]} 39. Ra1 {[%clk 0:01:29.6]} 39...
h4 {[%clk 0:01:11.2]} 40. gxh4 {[%clk 0:01:30.6]} 40... gxh4 {[%clk 0:01:11.9]}
41. Rh1 {[%clk 0:01:31.4]} 41... Rh7 {[%clk 0:01:13.3]} 42. f4 {[%clk
0:01:28.8]} 42... h3 {[%clk 0:01:09.5]} 43. c4+ {[%clk 0:01:29.9]} 43... Ke6
{[%clk 0:01:10.5]} 44. Ke4 {[%clk 0:01:31.5]} 44... h2 {[%clk 0:01:08.8]} 45.
f5+ {[%clk 0:01:23.7]} 45... Kf6 {[%clk 0:01:09.8]} 46. Kd5 {[%clk 0:01:25.1]}
46... Kxf5 {[%clk 0:01:00]} 47. Kxd6 {[%clk 0:01:24.8]} 47... Kg4 {[%clk
0:00:54]} 48. Kxc5 {[%clk 0:01:25.6]} 48... Kg3 {[%clk 0:00:55.2]} 49. Kd6
{[%clk 0:01:18.2]} 49... Kg2 {[%clk 0:00:52.3]} 50. Ra1 {[%clk 0:01:11]} 50...
Rb7 {[%clk 0:00:44]} 51. Ra2+ {[%clk 0:01:03.3]} 51... Kg3 {[%clk 0:00:40.6]}
52. Ra1 {[%clk 0:00:56.5]} 52... Rxb3 {[%clk 0:00:40.7]} 53. c5 {[%clk
0:00:57.4]} 53... Rd3+ {[%clk 0:00:39.4]} 54. Kc7 {[%clk 0:00:57.1]} 54... Rc3
{[%clk 0:00:32.7]} 55. c6 {[%clk 0:00:58]} 55... Kg2 {[%clk 0:00:33]} 56. Ra2+
{[%clk 0:00:54.5]} 56... Kg3 {[%clk 0:00:33.2]} 57. Ra1 {[%clk 0:00:55.9]} 57...
a5 {[%clk 0:00:34.4]} 58. Kb6 {[%clk 0:00:53.5]} 58... a4 {[%clk 0:00:35.7]} 59.
c7 {[%clk 0:00:54.9]} 59... a3 {[%clk 0:00:35.8]} 60. Kb7 {[%clk 0:00:55.8]}
60... Rb3+ {[%clk 0:00:36.5]} 61. Ka7 {[%clk 0:00:55.8]} 61... Rc3 {[%clk
0:00:36.5]} 62. Kb7 {[%clk 0:00:56.9]} 62... a2 {[%clk 0:00:19.1]} 63. c8=Q
{[%clk 0:00:54.5]} 63... Rxc8 {[%clk 0:00:20.4]} 64. Kxc8 {[%clk 0:00:56.2]}
64... Kf3 {[%clk 0:00:21.7]} 65. Kc7 {[%clk 0:00:55.3]} 65... Ke3 {[%clk
0:00:21.2]} 66. Kc6 {[%clk 0:00:55.3]} 66... Kd3 {[%clk 0:00:22.2]} 67. Kc5
{[%clk 0:00:55.3]} 67... Kc3 {[%clk 0:00:23.1]} 68. Rh1 {[%clk 0:00:55.3]} 68...
Kb2 {[%clk 0:00:22.4]} 69. Rxh2+ {[%clk 0:00:56.2]} 69... Kb1 {[%clk 0:00:23.8]}
70. Kb4 {[%clk 0:00:52.1]} 70... a1=Q {[%clk 0:00:24.3]} 71. Kb3 {[%clk
0:00:51.4]} 71... Qa8 {[%clk 0:00:24.8]} 72. Rb2+ {[%clk 0:00:48.7]} 72... Kc1
{[%clk 0:00:23.8]} 73. Rc2+ {[%clk 0:00:50.1]} 73... Kd1 {[%clk 0:00:24.8]} 74.
Rc4 {[%clk 0:00:51.5]} 74... Qb7+ {[%clk 0:00:25.4]} 75. Kc3 {[%clk 0:00:52.4]}
75... Qf3+ {[%clk 0:00:26.4]} 76. Kb4 {[%clk 0:00:52.4]} 76... Qb7+ {[%clk
0:00:26.8]} 77. Kc3 {[%clk 0:00:53.6]} 77... Ke2 {[%clk 0:00:28.2]} 78. Kd4
{[%clk 0:00:53.9]} 78... Qd7+ {[%clk 0:00:28.2]} 79. Kc3 {[%clk 0:00:54.9]}
79... Qd2+ {[%clk 0:00:28.3]} 80. Kb3 {[%clk 0:00:55.1]} 80... Ke3 {[%clk
0:00:29]} 81. Rc3+ {[%clk 0:00:55.4]} 81... Kd4 {[%clk 0:00:28.6]} 82. Rc4+
{[%clk 0:00:54.4]} 82... Kd5 {[%clk 0:00:29.7]} 83. Rc2 {[%clk 0:00:55.6]} 83...
Qd1 {[%clk 0:00:28.7]} 84. Kb2 {[%clk 0:00:56.3]} 84... Kd4 {[%clk 0:00:29.3]}
85. Rc1 {[%clk 0:00:56]} 85... Qa4 {[%clk 0:00:29.5]} 86. Rc2 {[%clk 0:00:55.3]}
86... Kd3 {[%clk 0:00:29.4]} 87. Rc8 {[%clk 0:00:32.9]} 87... Qb4+ {[%clk
0:00:20.3]} 88. Kc1 {[%clk 0:00:33.2]} 88... Qe1+ {[%clk 0:00:20.7]} 89. Kb2
{[%clk 0:00:33.3]} 89... Qe5+ {[%clk 0:00:21.5]} 90. Kb1 {[%clk 0:00:31.8]}
90... Qb5+ {[%clk 0:00:19.9]} 91. Kc1 {[%clk 0:00:32.4]} 91... Qd7 {[%clk
0:00:20.9]} 92. Rc2 {[%clk 0:00:31.1]} 92... Qh7 {[%clk 0:00:20.9]} 93. Rd2+
{[%clk 0:00:32]} 93... Kc3 {[%clk 0:00:22.4]} 94. Kd1 {[%clk 0:00:17.4]} 94...
Qh1+ {[%clk 0:00:21.5]} 95. Ke2 {[%clk 0:00:18.8]} 95... Qh2+ {[%clk 0:00:22.8]}
96. Kf1 {[%clk 0:00:20.7]} 96... Qxd2 {[%clk 0:00:24.3]} 97. Kg1 {[%clk
0:00:22]} 97... Qe2 {[%clk 0:00:25.7]} 98. Kh1 {[%clk 0:00:23.5]} 98... Kd4
{[%clk 0:00:27.2]} 99. Kg1 {[%clk 0:00:25.4]} 99... Ke4 {[%clk 0:00:28.6]} 100.
Kh1 {[%clk 0:00:26.1]} 100... Kf3 {[%clk 0:00:30.2]} 101. Kg1 {[%clk 0:00:27.6]}
101... Qg2# {[%clk 0:00:31.9]} 0-1

[Event "*** Titled Tuesday 3|2 Blitz"]
[Site "Chess.com"]
[Date "2017.05.02"]
[Round "4"]
[White "Sinquefield"]
[Black "Boryboy"]
[Result "0-1"]
[WhiteElo "2185"]
[BlackElo "2320"]
[TimeControl "180+2"]
[EndTime "13:43:59 PDT"]
[Termination "Boryboy won by resignation"]

1. d4 {[%clk 0:03:02]} 1... e6 {[%clk 0:03:02]} 2. Nf3 {[%clk 0:03:02.4]} 2...
Nf6 {[%clk 0:02:59.6]} 3. Bg5 {[%clk 0:03:03.9]} 3... Be7 {[%clk 0:03:00.1]} 4.
Nbd2 {[%clk 0:03:05.4]} 4... b6 {[%clk 0:02:57.3]} 5. e3 {[%clk 0:03:06.9]} 5...
Bb7 {[%clk 0:02:58.7]} 6. Bd3 {[%clk 0:03:08.5]} 6... h6 {[%clk 0:02:59.5]} 7.
Bh4 {[%clk 0:03:08.9]} 7... c5 {[%clk 0:03:01]} 8. c3 {[%clk 0:03:10.3]} 8...
Nc6 {[%clk 0:03:02.2]} 9. O-O {[%clk 0:03:10.1]} 9... O-O {[%clk 0:03:03.2]} 10.
Qe2 {[%clk 0:02:58.6]} 10... Rc8 {[%clk 0:03:01.7]} 11. Rfe1 {[%clk 0:02:56.6]}
11... d6 {[%clk 0:02:56.9]} 12. h3 {[%clk 0:02:57.3]} 12... Qc7 {[%clk
0:02:48.1]} 13. Bg3 {[%clk 0:02:58.4]} 13... Qb8 {[%clk 0:02:48.2]} 14. e4
{[%clk 0:02:55.4]} 14... cxd4 {[%clk 0:02:45.3]} 15. cxd4 {[%clk 0:02:57.3]}
15... Qa8 {[%clk 0:02:45.2]} 16. Ba6 {[%clk 0:02:52.6]} 16... Bxa6 {[%clk
0:02:41.2]} 17. Qxa6 {[%clk 0:02:53.3]} 17... Nb4 {[%clk 0:02:42.8]} 18. Qa3
{[%clk 0:02:48.3]} 18... Nc2 {[%clk 0:02:42.1]} 19. Qd3 {[%clk 0:02:49.3]} 19...
Nxa1 {[%clk 0:02:41.7]} 20. Rxa1 {[%clk 0:02:51.2]} 20... d5 {[%clk 0:02:42.8]}
21. e5 {[%clk 0:02:49.4]} 21... Ne4 {[%clk 0:02:44.2]} 22. Re1 {[%clk
0:02:48.8]} 22... Nxd2 {[%clk 0:02:44.6]} 23. Nxd2 {[%clk 0:02:49.1]} 23... Qc6
{[%clk 0:02:46.3]} 24. Nf3 {[%clk 0:02:48.6]} 24... Qc2 {[%clk 0:02:47.2]} 25.
Qb5 {[%clk 0:02:47.4]} 25... Qc4 {[%clk 0:02:43.2]} 26. Qd7 {[%clk 0:02:46.4]}
26... Rc7 {[%clk 0:02:44.4]} 27. b3 {[%clk 0:02:43.9]} 27... Rxd7 {[%clk
0:02:41.6]} 28. bxc4 {[%clk 0:02:45.8]} 28... dxc4 {[%clk 0:02:43.5]} 29. Rc1
{[%clk 0:02:47.1]} 29... b5 {[%clk 0:02:44.7]} 30. Bf4 {[%clk 0:02:47.7]} 30...
Rc8 {[%clk 0:02:44]} 31. Be3 {[%clk 0:02:49.6]} 31... b4 {[%clk 0:02:45]} 32.
Ne1 {[%clk 0:02:51.5]} 32... a5 {[%clk 0:02:45.5]} 33. Nc2 {[%clk 0:02:52.3]}
33... a4 {[%clk 0:02:46.5]} 34. Bd2 {[%clk 0:02:51.5]} 34... b3 {[%clk
0:02:47.6]} 35. Ne3 {[%clk 0:02:43.8]} 35... Ba3 {[%clk 0:02:45.1]} 36. Ra1
{[%clk 0:02:41]} 36... b2 {[%clk 0:02:43.9]} 37. Rb1 {[%clk 0:02:42.3]} 37... c3
{[%clk 0:02:45.4]} 38. Be1 {[%clk 0:02:43.3]} 38... c2 {[%clk 0:02:46.9]} 0-1

[Event "*** Titled Tuesday 3|2 Blitz"]
[Site "Chess.com"]
[Date "2017.05.02"]
[Round "4"]
[White "arna"]
[Black "Msb2"]
[Result "0-1"]
[WhiteElo "2103"]
[BlackElo "2550"]
[TimeControl "180+2"]
[EndTime "13:44:38 PDT"]
[Termination "Msb2 won on time"]

1. e4 {[%clk 0:03:02]} 1... e6 {[%clk 0:03:00.6]} 2. d4 {[%clk 0:03:02.4]} 2...
d5 {[%clk 0:03:02.5]} 3. Nd2 {[%clk 0:03:03.7]} 3... c5 {[%clk 0:03:01.9]} 4.
exd5 {[%clk 0:03:04.1]} 4... Qxd5 {[%clk 0:03:03.8]} 5. dxc5 {[%clk 0:03:05.4]}
5... Nf6 {[%clk 0:03:04.6]} 6. Ngf3 {[%clk 0:03:06.3]} 6... Qxc5 {[%clk
0:03:05.4]} 7. Bd3 {[%clk 0:03:00.7]} 7... Nbd7 {[%clk 0:03:06.4]} 8. O-O {[%clk
0:02:57.8]} 8... Qc7 {[%clk 0:03:08.3]} 9. Qe2 {[%clk 0:02:57.1]} 9... Nc5
{[%clk 0:03:08.2]} 10. Bc4 {[%clk 0:02:56]} 10... a6 {[%clk 0:03:06.7]} 11. a4
{[%clk 0:02:56]} 11... Bd6 {[%clk 0:03:05.8]} 12. Nb3 {[%clk 0:02:41.7]} 12...
Nxb3 {[%clk 0:03:05.2]} 0-1

[Event "*** Titled Tuesday 3|2 Blitz"]
[Site "Chess.com"]
[Date "2017.05.02"]
[Round "4"]
[White "RobertoJBM"]
[Black "Cayse"]
[Result "1-0"]
[WhiteElo "2479"]
[BlackElo "2640"]
[TimeControl "180+2"]
[EndTime "13:45:01 PDT"]
[Termination "RobertoJBM won by resignation"]

1. d4 {[%clk 0:03:02]} 1... Nf6 {[%clk 0:03:00.2]} 2. c3 {[%clk 0:03:00.8]} 2...
d5 {[%clk 0:02:59.9]} 3. Bf4 {[%clk 0:03:00.7]} 3... e6 {[%clk 0:03:00.3]} 4. e3
{[%clk 0:03:01.2]} 4... c5 {[%clk 0:03:00.6]} 5. Nd2 {[%clk 0:03:01.5]} 5... Nc6
{[%clk 0:03:01.5]} 6. Ngf3 {[%clk 0:03:01.3]} 6... cxd4 {[%clk 0:03:02.4]} 7.
exd4 {[%clk 0:03:01.4]} 7... Nh5 {[%clk 0:03:03.4]} 8. Be3 {[%clk 0:03:01.3]}
8... Bd6 {[%clk 0:03:03.1]} 9. Ne5 {[%clk 0:03:02.2]} 9... g6 {[%clk 0:03:03.7]}
10. Bb5 {[%clk 0:03:02.5]} 10... O-O {[%clk 0:03:02.4]} 11. Nxc6 {[%clk
0:03:00]} 11... bxc6 {[%clk 0:03:02.9]} 12. Bxc6 {[%clk 0:03:01.9]} 12... Rb8
{[%clk 0:03:04.3]} 13. b4 {[%clk 0:03:02.7]} 13... Qc7 {[%clk 0:02:36.9]} 14. b5
{[%clk 0:03:02.6]} 14... Bxh2 {[%clk 0:02:37.3]} 15. g3 {[%clk 0:02:58.5]} 15...
Bxg3 {[%clk 0:02:34]} 16. fxg3 {[%clk 0:02:55.6]} 16... Qxg3+ {[%clk 0:02:35.5]}
17. Bf2 {[%clk 0:02:56.8]} 17... Qxc3 {[%clk 0:02:35.9]} 18. Rc1 {[%clk
0:02:55.4]} 18... Qd3 {[%clk 0:02:35.6]} 19. Qf3 {[%clk 0:02:52]} 19... Qxf3
{[%clk 0:02:29.8]} 20. Nxf3 {[%clk 0:02:53.9]} 20... f6 {[%clk 0:02:25.2]} 21.
a4 {[%clk 0:02:49.6]} 21... Rf7 {[%clk 0:02:21.8]} 22. Kd2 {[%clk 0:02:42]}
22... Bb7 {[%clk 0:02:17.7]} 23. Bxb7 {[%clk 0:02:41.2]} 23... Rbxb7 {[%clk
0:02:15.8]} 24. Rc6 {[%clk 0:02:43.1]} 24... e5 {[%clk 0:02:16.2]} 25. Be3
{[%clk 0:02:34.8]} 25... e4 {[%clk 0:02:14.2]} 26. Nh4 {[%clk 0:02:34.7]} 26...
f5 {[%clk 0:02:05.6]} 27. Bh6 {[%clk 0:02:34.9]} 27... Rfe7 {[%clk 0:02:06.5]}
28. Nxf5 {[%clk 0:02:34.8]} 28... Rec7 {[%clk 0:02:01.5]} 29. Nd6 {[%clk
0:02:16.2]} 29... Rxc6 {[%clk 0:01:53.4]} 30. bxc6 {[%clk 0:02:18.1]} 30... Rb2+
{[%clk 0:01:53.9]} 31. Kd1 {[%clk 0:02:04.8]} 1-0

[Event "*** Titled Tuesday 3|2 Blitz"]
[Site "Chess.com"]
[Date "2017.05.02"]
[Round "4"]
[White "cailinchetty"]
[Black "Abdodi"]
[Result "1-0"]
[WhiteElo "1928"]
[BlackElo "2042"]
[TimeControl "180+2"]
[EndTime "13:46:11 PDT"]
[Termination "cailinchetty won by resignation"]

1. e4 {[%clk 0:03:02]} 1... c5 {[%clk 0:02:57.4]} 2. Nf3 {[%clk 0:03:03.2]} 2...
d6 {[%clk 0:02:57.6]} 3. d4 {[%clk 0:03:04.6]} 3... cxd4 {[%clk 0:02:56.1]} 4.
Nxd4 {[%clk 0:03:06.1]} 4... Nf6 {[%clk 0:02:53.4]} 5. Nc3 {[%clk 0:03:07.3]}
5... a6 {[%clk 0:02:47.3]} 6. Bg5 {[%clk 0:03:08.5]} 6... e6 {[%clk 0:02:47.2]}
7. f4 {[%clk 0:03:08.6]} 7... Be7 {[%clk 0:02:47.7]} 8. Qf3 {[%clk 0:03:08.9]}
8... Nbd7 {[%clk 0:02:39.5]} 9. O-O-O {[%clk 0:03:07.9]} 9... Qc7 {[%clk
0:02:38.7]} 10. g4 {[%clk 0:03:08.7]} 10... Rb8 {[%clk 0:02:37.9]} 11. Bxf6
{[%clk 0:03:09.6]} 11... gxf6 {[%clk 0:02:37.5]} 12. g5 {[%clk 0:03:11.1]} 12...
fxg5 {[%clk 0:02:35.9]} 13. f5 {[%clk 0:03:07.7]} 13... e5 {[%clk 0:02:33.3]}
14. Nd5 {[%clk 0:03:06.9]} 14... Qa5 {[%clk 0:02:20.2]} 15. f6 {[%clk
0:02:57.7]} 15... Bf8 {[%clk 0:02:07]} 16. Nf5 {[%clk 0:02:53.9]} 16... Nc5
{[%clk 0:01:57.1]} 17. b4 {[%clk 0:02:48.6]} 17... Bxf5 {[%clk 0:01:36.8]} 18.
bxa5 {[%clk 0:02:26.5]} 18... Bxe4 {[%clk 0:01:36.8]} 19. Qg4 {[%clk 0:02:25.9]}
19... Bxh1 {[%clk 0:01:32]} 20. Bb5+ {[%clk 0:02:22.9]} 20... axb5 {[%clk
0:01:28]} 21. Rxh1 {[%clk 0:02:24.2]} 21... h5 {[%clk 0:00:42.3]} 22. Qb4 {[%clk
0:02:22]} 22... Bh6 {[%clk 0:00:40.5]} 23. Qxb5+ {[%clk 0:02:19.4]} 23... Kf8
{[%clk 0:00:40.8]} 24. Qb6 {[%clk 0:02:06]} 24... Rc8 {[%clk 0:00:25.2]} 1-0

[Event "*** Titled Tuesday 3|2 Blitz"]
[Site "Chess.com"]
[Date "2017.05.02"]
[Round "4"]
[White "Robin-Side"]
[Black "scrapnel"]
[Result "1-0"]
[WhiteElo "2276"]
[BlackElo "2482"]
[TimeControl "180+2"]
[EndTime "13:46:22 PDT"]
[Termination "Robin-Side won by resignation"]

1. e4 {[%clk 0:03:02]} 1... c5 {[%clk 0:03:00.2]} 2. Nf3 {[%clk 0:03:03]} 2...
d6 {[%clk 0:03:01.5]} 3. d4 {[%clk 0:03:01.8]} 3... cxd4 {[%clk 0:03:02.4]} 4.
Nxd4 {[%clk 0:03:03.7]} 4... Nf6 {[%clk 0:03:03.5]} 5. Nc3 {[%clk 0:03:04.6]}
5... a6 {[%clk 0:03:04.8]} 6. Be2 {[%clk 0:03:05.4]} 6... e5 {[%clk 0:03:04.4]}
7. Nb3 {[%clk 0:03:06.5]} 7... Be7 {[%clk 0:03:05.6]} 8. Be3 {[%clk 0:03:06.2]}
8... O-O {[%clk 0:03:06.1]} 9. g4 {[%clk 0:03:07.2]} 9... Be6 {[%clk 0:02:58.3]}
10. g5 {[%clk 0:03:05.1]} 10... Nfd7 {[%clk 0:02:58.7]} 11. h4 {[%clk
0:03:06.1]} 11... b5 {[%clk 0:02:46.4]} 12. Qd2 {[%clk 0:03:03.8]} 12... Nb6
{[%clk 0:02:42.9]} 13. h5 {[%clk 0:02:37]} 13... N8d7 {[%clk 0:02:12.6]} 14. f4
{[%clk 0:02:21.4]} 14... b4 {[%clk 0:01:45.6]} 15. Nd1 {[%clk 0:02:00.5]} 15...
exf4 {[%clk 0:01:38.6]} 16. Bxf4 {[%clk 0:01:59.5]} 16... a5 {[%clk 0:01:35.1]}
17. Nd4 {[%clk 0:01:56.7]} 17... Ne5 {[%clk 0:01:33.8]} 18. g6 {[%clk
0:01:42.1]} 18... fxg6 {[%clk 0:01:31.7]} 19. Nxe6 {[%clk 0:01:40.1]} 19... Qd7
{[%clk 0:01:31]} 20. Nxf8 {[%clk 0:01:38]} 20... Rxf8 {[%clk 0:01:31.5]} 21.
Bxe5 {[%clk 0:01:36]} 21... Qe6 {[%clk 0:01:31.8]} 22. Bg3 {[%clk 0:01:06.6]}
22... Qxe4 {[%clk 0:01:31.5]} 23. Rg1 {[%clk 0:01:00.6]} 23... Bh4 {[%clk
0:01:15.4]} 24. Qe3 {[%clk 0:00:53]} 1-0

[Event "*** Titled Tuesday 3|2 Blitz"]
[Site "Chess.com"]
[Date "2017.05.02"]
[Round "4"]
[White "Ez_Chess2016"]
[Black "Gordima"]
[Result "0-1"]
[WhiteElo "1986"]
[BlackElo "2590"]
[TimeControl "180+2"]
[EndTime "13:46:44 PDT"]
[Termination "Gordima won by resignation"]

1. e4 {[%clk 0:03:00.5]} 1... c5 {[%clk 0:03:00.6]} 2. Nf3 {[%clk 0:03:01.2]}
2... e6 {[%clk 0:03:01.8]} 3. b3 {[%clk 0:03:01.7]} 3... b6 {[%clk 0:03:01.9]}
4. Bb2 {[%clk 0:03:02.4]} 4... Bb7 {[%clk 0:03:03.5]} 5. Bd3 {[%clk 0:03:04.1]}
5... d6 {[%clk 0:03:03.7]} 6. O-O {[%clk 0:03:04.8]} 6... Nf6 {[%clk 0:03:04.6]}
7. e5 {[%clk 0:03:02.7]} 7... dxe5 {[%clk 0:03:05.4]} 8. Nxe5 {[%clk 0:03:04.6]}
8... Nbd7 {[%clk 0:03:05.6]} 9. f4 {[%clk 0:03:01.8]} 9... Bd6 {[%clk
0:02:50.3]} 10. a4 {[%clk 0:03:02.3]} 10... a6 {[%clk 0:02:46.9]} 11. Na3 {[%clk
0:03:02.8]} 11... Bc7 {[%clk 0:02:44.3]} 12. Qe2 {[%clk 0:02:52.7]} 12... Nd5
{[%clk 0:02:36.1]} 13. Nxd7 {[%clk 0:02:30.3]} 13... Qxd7 {[%clk 0:02:36.2]} 14.
Nc4 {[%clk 0:02:14.8]} 14... Nxf4 {[%clk 0:02:16.3]} 15. Rxf4 {[%clk 0:02:14.3]}
15... Bxf4 {[%clk 0:02:17.2]} 16. Nxb6 {[%clk 0:01:54.1]} 16... Bxh2+ {[%clk
0:01:40.9]} 17. Kh1 {[%clk 0:01:44.1]} 17... Qd8 {[%clk 0:01:41.9]} 18. Nxa8
{[%clk 0:01:33.7]} 18... Qh4 {[%clk 0:01:42.7]} 19. Nc7+ {[%clk 0:00:49.7]}
19... Bxc7+ {[%clk 0:01:42.4]} 20. Kg1 {[%clk 0:00:50.6]} 20... Bh2+ {[%clk
0:00:58.9]} 21. Kf1 {[%clk 0:00:50.5]} 21... Bg3 {[%clk 0:01:00.4]} 0-1

[Event "*** Titled Tuesday 3|2 Blitz"]
[Site "Chess.com"]
[Date "2017.05.02"]
[Round "4"]
[White "korason34"]
[Black "TricksOnly"]
[Result "0-1"]
[WhiteElo "2305"]
[BlackElo "2415"]
[TimeControl "180+2"]
[EndTime "13:46:48 PDT"]
[Termination "TricksOnly won by checkmate"]

1. d4 {[%clk 0:03:02]} 1... d5 {[%clk 0:02:59.9]} 2. c4 {[%clk 0:03:02.6]} 2...
c6 {[%clk 0:03:01.1]} 3. Nf3 {[%clk 0:03:02.5]} 3... Nf6 {[%clk 0:03:02.2]} 4.
e3 {[%clk 0:03:01.9]} 4... Bg4 {[%clk 0:03:01.8]} 5. h3 {[%clk 0:03:01.3]} 5...
Bh5 {[%clk 0:03:02.3]} 6. Nbd2 {[%clk 0:03:01.7]} 6... e6 {[%clk 0:03:02.8]} 7.
Bd3 {[%clk 0:02:58.2]} 7... Nbd7 {[%clk 0:02:58.1]} 8. b3 {[%clk 0:02:55.9]}
8... Be7 {[%clk 0:02:50.4]} 9. O-O {[%clk 0:02:56.7]} 9... O-O {[%clk
0:02:35.7]} 10. Bb2 {[%clk 0:02:55.2]} 10... a5 {[%clk 0:02:32.6]} 11. Qc2
{[%clk 0:02:54.6]} 11... Bg6 {[%clk 0:02:32.2]} 12. Bxg6 {[%clk 0:02:53.7]}
12... hxg6 {[%clk 0:02:33]} 13. e4 {[%clk 0:02:55.4]} 13... dxe4 {[%clk
0:02:29.2]} 14. Nxe4 {[%clk 0:02:57.3]} 14... Nxe4 {[%clk 0:02:29.2]} 15. Qxe4
{[%clk 0:02:59.2]} 15... Bf6 {[%clk 0:02:25.7]} 16. Rad1 {[%clk 0:02:57.7]}
16... Qb6 {[%clk 0:02:08.5]} 17. Ba3 {[%clk 0:02:57.3]} 17... Rfd8 {[%clk
0:01:55.5]} 18. Bd6 {[%clk 0:02:56.4]} 18... a4 {[%clk 0:01:35.9]} 19. c5 {[%clk
0:02:56.2]} 19... Qb4 {[%clk 0:01:32]} 20. g4 {[%clk 0:02:48.9]} 20... Re8
{[%clk 0:01:23.9]} 21. g5 {[%clk 0:02:34.7]} 21... Be7 {[%clk 0:01:24.1]} 22.
Bxe7 {[%clk 0:02:36.3]} 22... Rxe7 {[%clk 0:01:25]} 23. Rb1 {[%clk 0:02:38]}
23... Nxc5 {[%clk 0:01:18.6]} 24. Qc2 {[%clk 0:02:32.2]} 24... Na6 {[%clk
0:01:14.1]} 25. bxa4 {[%clk 0:02:31.4]} 25... Qd6 {[%clk 0:01:12]} 26. Rb6
{[%clk 0:02:30.6]} 26... Qd5 {[%clk 0:01:04.2]} 27. Qc3 {[%clk 0:02:25.9]} 27...
Nc7 {[%clk 0:00:58.3]} 28. Rfb1 {[%clk 0:02:11.4]} 28... Qf5 {[%clk 0:00:55.9]}
29. Qa3 {[%clk 0:02:05]} 29... Nd5 {[%clk 0:00:51.4]} 30. Rxb7 {[%clk
0:02:05.9]} 30... Rxb7 {[%clk 0:00:46.6]} 31. Rxb7 {[%clk 0:02:07.8]} 31... Qxh3
{[%clk 0:00:45.3]} 32. Qb3 {[%clk 0:01:52.4]} 32... Nf4 {[%clk 0:00:39.8]} 33.
Rb8+ {[%clk 0:01:46.2]} 33... Kh7 {[%clk 0:00:40]} 34. Ne1 {[%clk 0:01:39.9]}
34... Ne2# {[%clk 0:00:40.1]} 0-1

[Event "*** Titled Tuesday 3|2 Blitz"]
[Site "Chess.com"]
[Date "2017.05.02"]
[Round "4"]
[White "matiss90"]
[Black "evgenyermolaev"]
[Result "1-0"]
[WhiteElo "2352"]
[BlackElo "2348"]
[TimeControl "180+2"]
[EndTime "13:46:50 PDT"]
[Termination "matiss90 won by checkmate"]

1. e4 {[%clk 0:03:02]} 1... c5 {[%clk 0:03:01]} 2. Nf3 {[%clk 0:03:02.5]} 2...
d6 {[%clk 0:03:02.1]} 3. d4 {[%clk 0:03:03.8]} 3... cxd4 {[%clk 0:03:03.4]} 4.
Nxd4 {[%clk 0:03:05.3]} 4... Nf6 {[%clk 0:03:05]} 5. Nc3 {[%clk 0:03:06.6]} 5...
a6 {[%clk 0:03:05.8]} 6. Bc4 {[%clk 0:03:07.4]} 6... e6 {[%clk 0:03:07.1]} 7.
Bb3 {[%clk 0:03:08.2]} 7... Be7 {[%clk 0:03:08.4]} 8. g4 {[%clk 0:03:09.2]} 8...
h6 {[%clk 0:02:31.5]} 9. Be3 {[%clk 0:03:05]} 9... Nc6 {[%clk 0:02:29.1]} 10.
Rg1 {[%clk 0:03:05.3]} 10... h5 {[%clk 0:02:22.9]} 11. g5 {[%clk 0:03:05.4]}
11... Ng4 {[%clk 0:02:23.8]} 12. Nxc6 {[%clk 0:02:46.3]} 12... bxc6 {[%clk
0:02:20.6]} 13. Qd2 {[%clk 0:02:44.5]} 13... Nxh2 {[%clk 0:02:13.2]} 14. Qe2
{[%clk 0:02:43.8]} 14... Ng4 {[%clk 0:02:11.2]} 15. g6 {[%clk 0:02:43.3]} 15...
fxg6 {[%clk 0:01:59.3]} 16. O-O-O {[%clk 0:02:43.4]} 16... a5 {[%clk 0:01:20.8]}
17. Rxg4 {[%clk 0:02:27.7]} 17... hxg4 {[%clk 0:01:18]} 18. Qxg4 {[%clk
0:02:28.3]} 18... Kf7 {[%clk 0:00:50.1]} 19. a4 {[%clk 0:02:18.5]} 19... Rh4
{[%clk 0:00:29.7]} 20. Qg3 {[%clk 0:02:08.8]} 20... Rh5 {[%clk 0:00:25.6]} 21.
Rg1 {[%clk 0:02:06.9]} 21... g5 {[%clk 0:00:15.4]} 22. f4 {[%clk 0:02:03.1]}
22... Bf6 {[%clk 0:00:10.7]} 23. e5 {[%clk 0:01:56.6]} 23... dxe5 {[%clk
0:00:04.9]} 24. fxg5 {[%clk 0:01:56.6]} 24... Be7 {[%clk 0:00:05]} 25. Qf3+
{[%clk 0:01:56.7]} 25... Kg6 {[%clk 0:00:05.9]} 26. Rf1 {[%clk 0:01:48.7]} 26...
Qe8 {[%clk 0:00:06.4]} 27. Qe4# {[%clk 0:01:48.6]} 1-0